bitfinex/quotes_BTCUSD_20241011
["timestamp","ask_amount","ask_price","bid_price","bid_amount"]
[1728611437496,0.000816,60299.0,60298.0,0.249258]
[1728611437803,0.000816,60299.0,60298.0,0.59638375]
[1728611438026,0.000816,60299.0,60298.0,0.5930673]
[1728611439052,0.001816,60299.0,60298.0,0.6070673]
[1728611442726,0.001816,60299.0,60298.0,0.6090673]
[1728611442938,0.001816,60299.0,60298.0,0.6070673]
[1728611448587,0.001816,60299.0,60298.0,1.11085206]
[1728611448796,0.001816,60299.0,60298.0,0.80893708]
[1728611449257,0.000816,60304.0,60300.0,0.005]
[1728611449491,0.000816,60304.0,60303.0,0.63519019]
[1728611450572,0.000816,60304.0,60303.0,0.64019019]
[1728611451283,0.000816,60304.0,60303.0,0.65419019]
[1728611452395,0.000816,60304.0,60303.0,0.70637911]
[1728611454789,0.000816,60304.0,60303.0,0.70137911]
[1728611456166,0.000815,60325.0,60318.0,0.149209]
[1728611456383,0.000815,60325.0,60318.0,0.74634211]
[1728611457506,0.000815,60325.0,60318.0,0.75734211]
[1728611458219,0.000815,60325.0,60318.0,0.91146592]
[1728611458441,0.000815,60325.0,60318.0,0.96059215]
[1728611458661,0.000815,60325.0,60318.0,1.00996767]
[1728611458881,0.000815,60325.0,60318.0,0.90946592]
[1728611459095,0.000815,60325.0,60318.0,0.91146592]
[1728611459336,0.000815,60325.0,60318.0,0.99896767]
[1728611459594,0.000815,60325.0,60318.0,0.89846592]
[1728611459824,0.000815,60325.0,60318.0,0.91246592]
[1728611460290,0.000815,60325.0,60318.0,0.97203643]
[1728611460505,0.000815,60325.0,60318.0,0.74634211]
[1728611460724,0.000815,60325.0,60318.0,0.81991908]
[1728611460963,0.000815,60325.0,60318.0,0.76034211]
[1728611461407,0.000815,60325.0,60318.0,0.76234211]
[1728611461624,0.000815,60325.0,60318.0,0.76034211]
[1728611462262,0.000815,60325.0,60318.0,0.74634211]
[1728611462480,0.000815,60325.0,60318.0,0.76034211]
[1728611463115,0.000815,60325.0,60318.0,0.74634211]
[1728611463327,0.000815,60325.0,60318.0,0.77571147]
[1728611463541,0.000815,60325.0,60318.0,0.84928844]
[1728611463756,0.000815,60325.0,60318.0,0.92783154]
[1728611463965,0.000815,60325.0,60318.0,1.02833329]
[1728611464401,0.000815,60325.0,60318.0,0.93483154]
[1728611465270,0.000815,60325.0,60324.0,0.231294]
[1728611465479,0.000815,60325.0,60324.0,0.71710341]
[1728611465920,0.000815,60325.0,60324.0,0.66809273]
[1728611466896,0.000815,60325.0,60324.0,0.68209273]
[1728611467366,0.000815,60325.0,60324.0,0.75560561]
[1728611467599,0.000815,60325.0,60324.0,0.75760561]
[1728611467855,0.000815,60325.0,60324.0,0.9081442]
[1728611468348,0.000815,60325.0,60324.0,0.78562273]
[1728611468594,0.000815,60325.0,60324.0,0.77162273]
[1728611468836,0.000815,60325.0,60324.0,0.9081442]
[1728611469329,0.000815,60325.0,60324.0,0.8941442]
[1728611469574,0.000815,60325.0,60324.0,0.89414986]
[1728611469821,0.000815,60325.0,60324.0,0.90814986]
[1728611470314,0.154132,60349.0,60345.0,0.149141]
[1728611470575,0.24974609,60346.0,60345.0,0.149141]
[1728611470823,0.02536976,60348.0,60345.0,0.149141]
[1728611471104,0.02536766,60346.0,60343.0,0.149146]
[1728611471351,0.02536766,60346.0,60340.0,0.298304]
[1728611471352,0.154134,60349.0,60345.0,0.149142]
[1728611471812,0.005,60349.0,60342.0,0.24974609]
[1728611472049,0.149136,60348.0,60344.0,0.149144]
[1728611472746,0.154133,60349.0,60345.0,0.149141]
[1728611472996,0.149136,60348.0,60345.0,0.011]
[1728611473477,0.149136,60348.0,60344.0,0.149144]
[1728611473706,0.149136,60348.0,60344.0,0.160144]
[1728611474916,0.149136,60348.0,60344.0,0.149144]
[1728611475145,0.005,60349.0,60342.0,0.24974609]
[1728611475389,0.149135,60348.0,60345.0,0.007]
[1728611475617,0.149138,60347.0,60345.0,0.007]
[1728611475876,0.154134,60349.0,60344.0,0.149144]
[1728611476106,0.154134,60349.0,60344.0,0.157144]
[1728611476640,0.15212381,60345.0,60337.0,0.29832]
[1728611476895,0.37807681,60341.0,60340.0,0.24974609]
[1728611477395,0.37807681,60341.0,60336.0,0.149163]
[1728611477396,0.149155,60340.0,60336.0,0.149163]
[1728611477640,0.149157,60339.0,60335.0,0.149165]
[1728611477870,0.149158,60339.0,60335.0,0.149165]
[1728611478100,0.005,60344.0,60338.0,0.24974609]
[1728611478325,0.468676,60347.0,60341.0,0.2983]
[1728611478326,0.1704,60347.0,60341.0,0.2983]
[1728611478545,0.1704,60347.0,60345.0,0.149141]
[1728611478823,0.29826,60351.0,60344.0,0.008]
[1728611478824,0.005,60350.0,60344.0,0.008]
[1728611479052,0.005,60350.0,60338.0,0.24974609]
[1728611479053,0.005,60350.0,60349.0,0.149132]
[1728611479276,0.005,60350.0,60348.0,0.149133]
[1728611479502,0.005,60350.0,60347.0,0.298273]
[1728611479736,0.005,60350.0,60346.0,0.298278]
[1728611479994,0.005,60350.0,60349.0,0.149131]
[1728611480454,0.0824,60351.0,60346.0,0.298278]
[1728611480675,0.0824,60351.0,60350.0,0.14913]
[1728611481340,0.0774,60351.0,60350.0,0.14913]
[1728611481586,0.005,60354.0,60351.0,0.149127]
[1728611481813,0.0775,60355.0,60347.0,0.54801709]
[1728611481814,0.0775,60355.0,60347.0,0.24974609]
[1728611482046,0.0911,60357.0,60351.0,0.298252]
[1728611482260,0.0911,60357.0,60352.0,0.01538782]
[1728611482483,0.0911,60357.0,60351.0,0.298252]
[1728611482484,0.0911,60357.0,60354.0,0.149119]
[1728611482699,0.0911,60357.0,60355.0,0.01538782]
[1728611482914,0.0911,60357.0,60351.0,0.298252]
[1728611482915,0.0911,60357.0,60356.0,0.01538782]
[1728611483351,0.0911,60357.0,60351.0,0.298252]
[1728611483574,0.149122,60353.0,60352.0,0.01538799]
[1728611484023,0.298246,60353.0,60345.0,0.24974609]
[1728611484240,0.15212381,60350.0,60346.0,0.298279]
[1728611484476,0.15212381,60353.0,60347.0,0.298274]
[1728611484690,0.23762381,60356.0,60348.0,0.298267]
[1728611484902,0.23762381,60356.0,60353.0,0.149121]
[1728611485364,0.0805,60356.0,60355.0,0.149117]
[1728611485585,0.0805,60356.0,60351.0,0.005]
[1728611485586,0.0002,60359.0,60358.0,0.14911]
[1728611486031,0.0002,60359.0,60354.0,0.29824]
[1728611486249,0.0002,60359.0,60355.0,0.149116]
[1728611486535,0.0002,60359.0,60356.0,0.149114]
[1728611486961,0.0002,60359.0,60358.0,0.003]
[1728611488589,0.149307,60359.0,60358.0,0.003]
[1728611488833,0.0002,60359.0,60355.0,0.149115]
[1728611489075,0.149309,60359.0,60356.0,0.005]
[1728611489552,0.149309,60359.0,60354.0,0.149119]
[1728611489791,0.15212381,60357.0,60353.0,0.54798809]
[1728611490028,0.15212381,60357.0,60355.0,0.149116]
[1728611490551,0.15212381,60357.0,60353.0,0.39886609]
[1728611490782,0.15212381,60357.0,60356.0,0.005]
[1728611490783,0.30123781,60357.0,60356.0,0.005]
[1728611491918,0.14912,60354.0,60349.0,0.149131]
[1728611492131,0.30124381,60354.0,60352.0,0.24974609]
[1728611494410,0.149929,60357.0,60353.0,0.149122]
[1728611494854,0.000816,60357.0,60353.0,0.149122]
[1728611495073,0.000816,60357.0,60356.0,0.149115]
[1728611496919,0.000816,60357.0,60356.0,0.151115]
[1728611498199,0.000816,60357.0,60356.0,0.149115]
[1728611498433,0.000816,60357.0,60356.0,0.154115]
[1728611499109,0.000816,60357.0,60356.0,0.005]
[1728611499444,0.149928,60357.0,60356.0,0.005]
[1728611499675,0.228728,60357.0,60356.0,0.005]
[1728611500166,0.228728,60357.0,60349.0,0.298263]
[1728611500167,0.228729,60357.0,60352.0,0.39886909]
[1728611500407,0.079616,60357.0,60352.0,0.24974609]
[1728611500634,0.149126,60352.0,60348.0,0.149134]
[1728611500858,0.15212381,60352.0,60346.0,0.298278]
[1728611501322,0.15212381,60352.0,60350.0,0.149128]
[1728611502690,0.15212381,60352.0,60351.0,0.149127]
[1728611503146,0.15212381,60355.0,60351.0,0.149127]
[1728611503541,0.15212381,60355.0,60352.0,0.149124]
[1728611504204,0.149116,60356.0,60352.0,0.149124]
[1728611504634,0.005816,60357.0,60355.0,0.24974609]
[1728611504863,0.005816,60357.0,60351.0,0.004]
[1728611505089,0.1733,60356.0,60352.0,0.24974609]
[1728611505307,0.1733,60356.0,60354.0,0.149119]
[1728611507228,0.1733,60356.0,60352.0,0.159124]
[1728611507694,0.1733,60356.0,60353.0,0.149122]
[1728611508383,0.1733,60356.0,60354.0,0.008]
[1728611508807,0.1733,60356.0,60353.0,0.149122]
[1728611509019,0.1733,60356.0,60350.0,0.298258]
[1728611509020,0.02549549,60355.0,60351.0,0.149126]
[1728611509240,0.02549549,60355.0,60353.0,0.005]
[1728611509462,0.02549549,60355.0,60353.0,0.154122]
[1728611510198,0.02549549,60355.0,60353.0,0.005]
[1728611510662,0.02549549,60355.0,60352.0,0.39886909]
[1728611510912,0.02549549,60355.0,60352.0,0.24974609]
[1728611511186,0.1776193,60355.0,60351.0,0.007]
[1728611511442,0.1776193,60355.0,60350.0,0.0001]
[1728611511443,0.149124,60353.0,60350.0,0.0001]
[1728611511681,0.3267383,60355.0,60353.0,0.005]
[1728611511915,0.15212381,60355.0,60353.0,0.005]
[1728611512141,0.15212381,60355.0,60351.0,0.149126]
[1728611512354,0.14912,60354.0,60351.0,0.007]
[1728611512566,0.15212381,60355.0,60351.0,0.156127]
[1728611512990,0.30124181,60355.0,60351.0,0.156127]
[1728611513198,0.15212381,60355.0,60352.0,0.149124]
[1728611513654,0.30124281,60355.0,60351.0,0.156126]
[1728611514318,0.30124281,60355.0,60351.0,0.149126]
[1728611514538,0.15412,60354.0,60353.0,0.001]
[1728611514819,0.45236,60354.0,60353.0,0.001]
[1728611515066,0.149126,60352.0,60350.0,0.0001]
[1728611515299,0.149127,60351.0,60350.0,0.0001]
[1728611515523,0.15212381,60352.0,60350.0,0.0001]
[1728611515945,0.30124881,60352.0,60350.0,0.0001]
[1728611516158,0.15212381,60352.0,60350.0,0.0001]
[1728611516371,0.149127,60351.0,60350.0,0.0001]
[1728611517225,0.15212381,60352.0,60350.0,0.0001]
[1728611517440,0.30124881,60352.0,60350.0,0.0001]
[1728611517655,0.149127,60351.0,60350.0,0.0001]
[1728611517876,0.15212381,60352.0,60350.0,0.0031]
[1728611518085,0.30124981,60352.0,60350.0,0.0031]
[1728611518299,0.30124981,60352.0,60350.0,0.0001]
[1728611518742,0.30124981,60352.0,60350.0,0.0031]
[1728611518976,0.149127,60351.0,60350.0,0.0031]
[1728611519444,0.30124881,60352.0,60350.0,0.0031]
[1728611519683,0.15212381,60352.0,60350.0,0.0031]
[1728611519961,0.15212381,60352.0,60350.0,0.0001]
[1728611520440,0.149127,60351.0,60350.0,0.0031]
[1728611520878,0.149127,60351.0,60350.0,0.0001]
[1728611521116,0.15212381,60352.0,60350.0,0.0001]
[1728611521352,0.30124881,60352.0,60350.0,0.0031]
[1728611521707,0.30124881,60352.0,60350.0,0.0001]
[1728611522132,0.149127,60351.0,60350.0,0.0001]
[1728611523587,0.149127,60351.0,60350.0,0.0031]
[1728611524021,0.55162637,60351.0,60350.0,0.0001]
[1728611524337,0.55162637,60351.0,60350.0,0.0031]
[1728611524736,0.55162637,60351.0,60350.0,0.0001]
[1728611525196,0.55162637,60351.0,60350.0,0.0021]
[1728611526702,0.55162637,60351.0,60350.0,0.0001]
[1728611527603,0.55362637,60351.0,60350.0,0.0001]
[1728611527842,0.71375459,60351.0,60350.0,0.0001]
[1728611528299,0.55362637,60351.0,60350.0,0.0001]
[1728611528956,0.65362637,60351.0,60350.0,0.0001]
[1728611529180,0.7032969,60351.0,60350.0,0.0001]
[1728611529402,0.65362637,60351.0,60350.0,0.0001]
[1728611529645,0.80575018,60351.0,60350.0,0.0001]
[1728611529899,1.02482321,60351.0,60350.0,0.0001]
[1728611530119,0.97519288,60351.0,60350.0,0.0011]
[1728611530308,1.02482417,60351.0,60350.0,0.0011]
[1728611530517,0.97519288,60351.0,60350.0,0.0001]
[1728611530943,0.97519288,60351.0,60350.0,0.0011]
[1728611532553,0.80375018,60351.0,60350.0,0.0011]
[1728611532980,0.70375018,60351.0,60350.0,0.0011]
[1728611533202,0.70375018,60351.0,60350.0,0.0001]
[1728611533640,0.70375018,60351.0,60350.0,0.0011]
[1728611534072,0.70375018,60351.0,60350.0,0.0001]
[1728611534292,0.34892637,60351.0,60350.0,0.0001]
[1728611536104,0.37192637,60351.0,60350.0,0.0001]
[1728611537018,0.52605018,60351.0,60350.0,0.0001]
[1728611537158,0.52405018,60351.0,60350.0,0.0001]
[1728611539776,0.60655018,60351.0,60350.0,0.0001]
[1728611540188,0.52405018,60351.0,60350.0,0.0001]
[1728611542147,0.17961707,60351.0,60350.0,0.0001]
[1728611544163,0.03049007,60351.0,60350.0,0.0001]
[1728611544436,0.02549007,60351.0,60350.0,0.0001]
[1728611544661,0.02549007,60351.0,60350.0,0.14923]
[1728611545317,0.02549007,60351.0,60350.0,0.22753]
[1728611545574,0.000816,60352.0,60351.0,0.149127]
[1728611545806,0.000816,60352.0,60351.0,0.321727]
[1728611546666,0.000816,60352.0,60351.0,0.322727]
[1728611547794,0.000816,60352.0,60351.0,0.321727]
[1728611548227,0.000816,60352.0,60351.0,0.4910363]
[1728611548462,0.000816,60352.0,60351.0,0.79243286]
[1728611548673,0.000816,60352.0,60351.0,0.84170561]
[1728611548882,0.000816,60352.0,60351.0,0.74316011]
[1728611549093,0.000816,60352.0,60351.0,0.87614808]
[1728611549303,0.000816,60352.0,60351.0,0.75316011]
[1728611549516,0.000816,60352.0,60351.0,0.87609728]
[1728611549735,0.000816,60352.0,60351.0,0.86609728]
[1728611549944,0.000816,60352.0,60351.0,0.75716011]
[1728611550357,0.000816,60352.0,60351.0,0.76051677]
[1728611550566,0.000816,60352.0,60351.0,0.88341154]
[1728611550782,0.000816,60352.0,60351.0,0.89541154]
[1728611551454,0.000816,60352.0,60351.0,0.75716011]
[1728611551664,0.000816,60352.0,60351.0,0.870811]
[1728611551867,0.000816,60352.0,60351.0,0.75716011]
[1728611552069,0.000816,60352.0,60351.0,0.856811]
[1728611552294,0.000816,60352.0,60351.0,0.85545434]
[1728611552500,0.000816,60352.0,60351.0,0.83086548]
[1728611552967,0.000816,60352.0,60351.0,0.81686548]
[1728611553165,0.000816,60352.0,60351.0,0.83086548]
[1728611553741,0.000816,60352.0,60351.0,0.81686548]
[1728611553947,0.000816,60352.0,60351.0,0.83086548]
[1728611554604,0.000816,60352.0,60351.0,0.75716011]
[1728611555188,0.000816,60352.0,60351.0,0.74316011]
[1728611555550,0.000816,60352.0,60351.0,0.79226815]
[1728611555754,0.000816,60352.0,60351.0,0.80626815]
[1728611556092,0.000816,60352.0,60351.0,0.79226815]
[1728611556310,0.000816,60352.0,60351.0,0.80626815]
[1728611556514,0.000816,60352.0,60351.0,0.95839196]
[1728611556739,0.0002,60359.0,60355.0,0.273]
[1728611556942,0.0002,60359.0,60358.0,0.74554311]
[1728611557196,0.700816,60360.0,60358.0,0.74554311]
[1728611557197,0.700816,60360.0,60359.0,0.251107]
[1728611557406,0.0002,60379.0,60359.0,0.251107]
[1728611557407,0.0002,60379.0,60366.0,0.002]
[1728611557612,1.88748228,60370.0,60369.0,0.89763992]
[1728611557828,0.0002,60379.0,60369.0,0.89763992]
[1728611557829,0.0002,60379.0,60378.0,0.25406]
[1728611558034,0.0002,60379.0,60378.0,0.74899311]
[1728611558270,0.0001,60398.0,60385.0,0.345943]
[1728611558501,0.0001,60398.0,60385.0,0.81949992]
[1728611558704,0.0001,60398.0,60385.0,0.82149992]
[1728611559318,0.0001,60398.0,60385.0,0.82649992]
[1728611559521,0.0001,60398.0,60385.0,0.84049992]
[1728611559954,0.0001,60398.0,60385.0,0.84949992]
[1728611560166,0.0001,60398.0,60397.0,0.249014]
[1728611560381,0.0001,60398.0,60397.0,0.66975773]
[1728611560586,0.02961818,60399.0,60398.0,0.249011]
[1728611560817,0.02961818,60399.0,60398.0,0.4183203]
[1728611562560,0.02961818,60399.0,60398.0,0.4323203]
[1728611562970,0.02961818,60399.0,60398.0,0.4183203]
[1728611563384,0.02961818,60399.0,60398.0,0.4323203]
[1728611564737,0.02961818,60399.0,60398.0,0.58644411]
[1728611564943,0.03043418,60399.0,60398.0,0.58644411]
[1728611565372,0.03043418,60399.0,60398.0,0.57744411]
[1728611565576,0.01612428,60406.0,60405.0,0.002]
[1728611565815,0.01612428,60406.0,60405.0,0.57242711]
[1728611566049,0.02910007,60406.0,60405.0,0.57242711]
[1728611566530,2.0,60410.0,60405.0,0.57242711]
[1728611566531,1.902816,60410.0,60409.0,0.107]
[1728611566770,1.902816,60410.0,60409.0,0.57541711]
[1728611566996,1.902816,60410.0,60409.0,0.4232933]
[1728611567205,1.902816,60410.0,60409.0,0.4182933]
[1728611568302,1.902816,60410.0,60409.0,0.4202933]
[1728611568973,1.902816,60410.0,60409.0,0.4252933]
[1728611569192,1.902816,60410.0,60409.0,0.4182933]
[1728611569407,1.902816,60410.0,60409.0,0.4322933]
[1728611569859,1.902816,60410.0,60409.0,0.4342933]
[1728611570592,1.902816,60410.0,60409.0,0.4622933]
[1728611571012,1.902816,60410.0,60409.0,0.4482933]
[1728611571484,1.902816,60410.0,60409.0,0.4392933]
[1728611571921,1.902816,60410.0,60409.0,0.4252933]
[1728611572172,1.902816,60410.0,60409.0,0.4392933]
[1728611572404,1.902816,60410.0,60409.0,0.4372933]
[1728611572771,1.902816,60410.0,60409.0,0.4392933]
[1728611574294,1.902816,60410.0,60409.0,0.45442126]
[1728611574755,1.902816,60410.0,60409.0,0.44042126]
[1728611575195,1.902816,60410.0,60409.0,0.45442126]
[1728611575637,1.902816,60410.0,60409.0,0.44042126]
[1728611575855,1.902816,60410.0,60409.0,0.45442126]
[1728611576091,1.902816,60410.0,60409.0,0.45405326]
[1728611576317,1.86636302,60410.0,60409.0,0.44905326]
[1728611576609,1.86636302,60410.0,60409.0,0.3339253]
[1728611576829,1.89569414,60410.0,60409.0,0.3339253]
[1728611577253,1.89569414,60410.0,60409.0,0.3199253]
[1728611577671,1.89569414,60410.0,60409.0,0.164616]
[1728611577916,1.97729414,60410.0,60409.0,0.164616]
[1728611578125,1.97729414,60410.0,60409.0,0.150616]
[1728611578344,1.97729414,60410.0,60409.0,0.164616]
[1728611578776,1.97729414,60410.0,60409.0,0.150616]
[1728611579231,1.97729414,60410.0,60409.0,0.160616]
[1728611580280,1.97729414,60410.0,60409.0,0.150616]
[1728611581138,1.97729414,60410.0,60409.0,0.164616]
[1728611581804,1.97729414,60410.0,60409.0,0.150616]
[1728611582234,1.97729414,60410.0,60409.0,0.164616]
[1728611583418,1.97729414,60410.0,60409.0,0.17974396]
[1728611583630,1.89569414,60410.0,60409.0,0.33505326]
[1728611584069,1.89569414,60410.0,60409.0,0.34805326]
[1728611584311,1.89569414,60410.0,60409.0,0.34815536]
[1728611584527,1.89569414,60410.0,60409.0,0.43515536]
[1728611584768,1.89569414,60410.0,60409.0,0.44915536]
[1728611585723,1.89569414,60410.0,60409.0,0.43515536]
[1728611585724,1.89069414,60410.0,60409.0,0.43515536]
[1728611586631,1.89069414,60410.0,60409.0,0.58727917]
[1728611587078,1.89069414,60410.0,60409.0,0.60127917]
[1728611587584,1.89069414,60410.0,60409.0,0.4352303]
[1728611588004,1.89069414,60410.0,60409.0,0.4492303]
[1728611588428,1.89069414,60410.0,60409.0,0.4352303]
[1728611588646,1.89069414,60410.0,60409.0,0.4492303]
[1728611589367,1.89069414,60410.0,60409.0,0.4512303]
[1728611590075,1.89069414,60410.0,60409.0,0.4372303]
[1728611590490,1.89069414,60410.0,60409.0,0.4492303]
[1728611590713,1.6878879,60410.0,60409.0,0.50174602]
[1728611590935,1.6878879,60410.0,60409.0,0.50374602]
[1728611591200,1.11405545,60410.0,60409.0,0.64654602]
[1728611591414,0.00032114,60416.0,60412.0,0.158977]
[1728611591616,3.0,60420.0,60419.0,0.43108281]
[1728611591617,2.83582714,60420.0,60419.0,0.43108281]
[1728611591893,2.83582714,60420.0,60419.0,0.61569711]
[1728611592539,2.80272514,60420.0,60419.0,0.61569711]
[1728611592761,2.70341914,60420.0,60419.0,0.79230243]
[1728611592991,2.70341914,60420.0,60419.0,0.64017862]
[1728611592992,2.67031714,60420.0,60419.0,0.64017862]
[1728611594093,2.67031714,60420.0,60419.0,0.60039211]
[1728611594318,2.67031714,60420.0,60419.0,0.65415498]
[1728611594777,2.67031714,60420.0,60419.0,0.62415498]
[1728611595237,2.67031714,60420.0,60419.0,0.67470835]
[1728611595459,2.67031714,60420.0,60419.0,0.63115498]
[1728611595751,2.67031714,60420.0,60419.0,0.60668552]
[1728611595964,2.67031714,60420.0,60419.0,0.67947219]
[1728611596199,2.67031714,60420.0,60419.0,0.68847219]
[1728611596672,2.67031714,60420.0,60419.0,0.70247219]
[1728611596920,2.67031714,60420.0,60419.0,0.67747219]
[1728611597130,2.67031714,60420.0,60419.0,0.59068552]
[1728611597389,2.67031714,60420.0,60419.0,0.60468552]
[1728611597622,2.67031714,60420.0,60419.0,0.67954878]
[1728611597844,2.67031714,60420.0,60419.0,0.66554878]
[1728611598067,2.67031714,60420.0,60419.0,0.67954878]
[1728611598524,2.67031714,60420.0,60419.0,0.6066729]
[1728611598963,2.67031714,60420.0,60419.0,0.6046729]
[1728611599401,2.67031714,60420.0,60419.0,0.5926729]
[1728611599734,2.67113314,60420.0,60419.0,0.5926729]
[1728611599827,2.53872514,60420.0,60419.0,0.7511327]
[1728611600074,2.50562314,60420.0,60419.0,0.6296729]
[1728611600313,2.53287832,60420.0,60419.0,0.6156729]
[1728611600547,2.36736832,60420.0,60419.0,0.62966222]
[1728611600998,2.36736832,60420.0,60419.0,0.61566222]
[1728611601233,2.36736832,60420.0,60419.0,0.66656727]
[1728611601487,1.56586232,60420.0,60419.0,0.83575311]
[1728611601721,1.48230917,60420.0,60419.0,2.37168671]
[1728611602471,1.20540632,60420.0,60419.0,2.37668671]
[1728611602696,0.000816,60447.0,60438.0,0.278912]
[1728611602917,0.000816,60447.0,60446.0,0.278893]
[1728611603149,0.000816,60447.0,60446.0,0.47067733]
[1728611603370,0.000816,60447.0,60446.0,1.97067733]
[1728611603821,0.000816,60447.0,60446.0,2.13998663]
[1728611604484,0.000816,60447.0,60446.0,2.2617192]
[1728611604485,1e-06,60447.0,60446.0,2.2617192]
[1728611604709,1e-06,60447.0,60446.0,2.15398663]
[1728611604953,0.0802,60472.0,60458.0,0.42898681]
[1728611605175,0.00583266,60479.0,60458.0,0.66320006]
[1728611605399,1e-06,60460.0,60459.0,0.278861]
[1728611605623,1e-06,60460.0,60459.0,0.48783082]
[1728611606326,0.00583266,60479.0,60466.0,0.005]
[1728611606557,0.00583266,60479.0,60466.0,0.51127865]
[1728611606778,0.00583266,60479.0,60466.0,0.66340167]
[1728611606997,0.00583266,60479.0,60466.0,0.63993663]
[1728611607281,9e-07,60471.0,60470.0,0.007]
[1728611607525,0.0001,60480.0,60470.0,0.007]
[1728611607526,6.6e-07,60480.0,60479.0,0.278811]
[1728611607752,6.6e-07,60480.0,60479.0,0.64296111]
[1728611607975,6.6e-07,60480.0,60479.0,2.29177929]
[1728611608202,0.352401,60515.0,60510.0,0.11678238]
[1728611608434,0.15212381,60511.0,60497.0,0.1]
[1728611608696,0.1757,60507.0,60501.0,0.24974609]
[1728611608940,0.324444,60507.0,60501.0,0.1693093]
[1728611609134,0.18096971,60506.0,60501.0,0.1693093]
[1728611609382,0.18096971,60506.0,60498.0,0.39851009]
[1728611609383,0.148749,60505.0,60498.0,0.24974609]
[1728611609601,0.03222471,60506.0,60499.0,0.3180713]
[1728611609795,0.03220795,60504.0,60499.0,0.1693093]
[1728611610029,0.18097124,60505.0,60499.0,0.1693093]
[1728611610245,0.18433176,60503.0,60500.0,0.24974609]
[1728611610492,0.03221286,60504.0,60501.0,0.1693093]
[1728611610730,0.1757,60507.0,60506.0,0.148745]
[1728611610952,0.1757,60507.0,60506.0,0.4180543]
[1728611611879,0.1757,60507.0,60506.0,0.3180543]
[1728611612106,0.1757,60507.0,60491.0,0.297561]
[1728611612327,0.148749,60505.0,60503.0,0.24974609]
[1728611612584,0.148749,60505.0,60497.0,0.148765]
[1728611612807,0.1757,60507.0,60506.0,0.148745]
[1728611613053,0.1757,60507.0,60506.0,0.3180543]
[1728611614175,0.1757,60507.0,60506.0,0.47017811]
[1728611614394,0.1757,60507.0,60506.0,0.1693093]
[1728611614609,0.1757,60507.0,60506.0,0.3180543]
[1728611614822,0.1757,60507.0,60506.0,0.1693093]
[1728611614823,0.20477141,60507.0,60506.0,0.1693093]
[1728611615038,0.1757,60507.0,60506.0,0.1693093]
[1728611615300,0.20477141,60507.0,60506.0,0.1693093]
[1728611615522,0.20477141,60507.0,60498.0,0.15212381]
[1728611615742,0.20477141,60507.0,60503.0,0.24974609]
[1728611615956,0.20477141,60507.0,60506.0,0.15212381]
[1728611616412,0.20477141,60507.0,60506.0,0.30086881]
[1728611616631,0.1757,60507.0,60506.0,0.30086881]
[1728611616859,0.1757,60507.0,60506.0,0.15212381]
[1728611617531,0.0979,60506.0,60498.0,0.15212381]
[1728611617795,0.10497267,60507.0,60503.0,0.24974609]
[1728611617796,0.24175,60504.0,60503.0,0.24974609]
[1728611618009,0.539258,60503.0,60502.0,0.24974609]
[1728611618228,0.539258,60503.0,60495.0,0.24974609]
[1728611618229,0.0826,60503.0,60495.0,0.24974609]
[1728611618449,0.005,60506.0,60495.0,0.24974609]
[1728611618450,0.32437,60496.0,60495.0,0.24974609]
[1728611618670,0.32437,60496.0,60489.0,0.15212381]
[1728611618671,0.1756,60496.0,60489.0,0.15212381]
[1728611618895,0.148787,60489.0,60488.0,0.24974609]
[1728611619137,0.148787,60489.0,60466.0,0.005]
[1728611619138,0.0825,60491.0,60471.0,0.54740409]
[1728611619358,0.0825,60491.0,60475.0,0.15212381]
[1728611619359,0.148807,60481.0,60475.0,0.15212381]
[1728611619570,0.148807,60481.0,60479.0,0.15212381]
[1728611619571,0.1817,60481.0,60479.0,0.15212381]
[1728611619799,0.21070874,60481.0,60479.0,0.15212381]
[1728611620043,0.21070874,60481.0,60480.0,0.24984609]
[1728611620291,0.148811,60480.0,60473.0,0.148826]
[1728611620503,0.148814,60478.0,60473.0,0.1693093]
[1728611620952,0.148814,60478.0,60465.0,0.297689]
[1728611620953,0.148835,60470.0,60463.0,0.148851]
[1728611621177,0.148846,60465.0,60464.0,0.24974609]
[1728611621402,0.0804,60465.0,60464.0,0.24974609]
[1728611621691,0.10931207,60465.0,60464.0,0.24974609]
[1728611621916,0.10931207,60465.0,60459.0,0.1693093]
[1728611622141,0.25815807,60465.0,60459.0,0.3181693]
[1728611622368,0.0804,60465.0,60459.0,0.4670303]
[1728611622588,0.0804,60465.0,60464.0,0.62561155]
[1728611622807,0.0804,60465.0,60464.0,0.54517476]
[1728611625942,0.0914,60487.0,60465.0,0.1]
[1728611626167,0.49493909,60487.0,60486.0,0.22701746]
[1728611626395,0.0914,60487.0,60486.0,0.22701746]
[1728611626613,0.240192,60487.0,60486.0,0.22701746]
[1728611626852,0.148796,60486.0,60482.0,0.22701746]
[1728611627111,0.0964,60487.0,60482.0,0.22701746]
[1728611627112,0.148798,60485.0,60482.0,0.22701746]
[1728611627363,0.388987,60487.0,60482.0,0.22701746]
[1728611627364,0.148796,60486.0,60482.0,0.22701746]
[1728611627607,0.0914,60487.0,60478.0,0.22701746]
[1728611627848,0.148811,60480.0,60477.0,0.24974609]
[1728611628193,0.0913,60483.0,60480.0,0.22701746]
[1728611628424,0.0913,60483.0,60477.0,0.39856109]
[1728611628666,0.0913,60483.0,60477.0,0.24974609]
[1728611629159,0.240102,60483.0,60477.0,0.39856109]
[1728611629459,0.02600903,60482.0,60477.0,0.39856109]
[1728611629894,0.17481403,60482.0,60477.0,0.24974609]
[1728611630151,0.02600903,60482.0,60476.0,0.24974609]
[1728611630414,0.02600903,60482.0,60476.0,0.54738109]
[1728611630653,0.02600903,60482.0,60476.0,0.24974609]
[1728611630883,0.02600903,60482.0,60476.0,0.39856409]
[1728611630884,0.17481403,60482.0,60476.0,0.39856409]
[1728611631355,0.148813,60479.0,60475.0,0.22701746]
[1728611631589,0.02600903,60482.0,60476.0,0.24974609]
[1728611631590,0.14881,60480.0,60476.0,0.24974609]
[1728611631840,0.02601291,60478.0,60476.0,0.24974609]
[1728611632069,0.14881,60480.0,60476.0,0.24974609]
[1728611632297,0.388906,60483.0,60476.0,0.24974609]
[1728611632524,0.02601291,60479.0,60476.0,0.24974609]